bitfinex-derivatives/quotes_ETHF0:USTF0_20250803
["timestamp","ask_amount","ask_price","bid_price","bid_amount"]
[1754185091831,22.7793,3421.5,3421.4,4.5454]
[1754185092328,2.4103,3421.5,3421.4,4.5454]
[1754185092522,22.1035,3421.5,3421.4,1.814]
[1754185092727,3.2078,3421.6,3421.5,5.13007]
[1754185092927,23.5758,3421.6,3421.5,5.13007]
[1754185093727,20.368,3421.6,3421.5,5.13007]
[1754185094132,4.2554,3422.8,3422.2,0.58455]
[1754185094330,24.3136,3422.7,3422.6,2.6007]
[1754185094535,24.3136,3422.7,3422.6,2.061]
[1754185094733,24.3136,3422.7,3422.6,0.4997]
[1754185095333,23.3825,3422.7,3422.6,4.5454]
[1754185096235,22.7783,3422.7,3422.6,4.5454]
[1754185096437,23.3825,3422.7,3422.6,4.5454]
[1754185096731,2.2111,3422.6,3422.4,0.9112]
[1754185096938,24.3116,3422.5,3422.4,2.061]
[1754185098028,22.1005,3422.5,3421.9,0.5846]
[1754185098234,3.0145,3422.0,3421.9,4.5454]
[1754185098432,3.9456,3422.0,3421.9,4.5454]
[1754185098832,3.9456,3422.0,3421.8,3.2078]
[1754185099033,24.3086,3421.9,3421.8,7.7532]
[1754185099430,24.3086,3421.9,3421.8,6.7197]
[1754185099925,24.3086,3421.9,3421.8,4.3576]
[1754185100125,24.3086,3421.9,3421.8,3.2078]
[1754185100330,1.46116,3422.8,3421.8,3.2078]
[1754185100331,22.0975,3422.3,3422.2,1.814]
[1754185100635,24.3086,3422.3,3422.2,4.5454]
[1754185101239,21.0638,3422.3,3422.2,4.5454]
[1754185101440,20.362,3422.3,3422.2,5.12993]
[1754185101741,20.362,3422.3,3422.2,4.5454]
[1754185101941,23.0047,3422.3,3422.2,4.5454]
[1754185102132,23.3765,3422.3,3422.2,4.5454]
[1754185102442,24.3076,3422.3,3422.2,4.5454]
[1754185102834,24.3076,3422.3,3421.9,1.8202]
[1754185103028,1.7345,3422.1,3422.0,2.061]
[1754185103233,24.3076,3422.1,3422.0,2.061]
[1754185103431,1.7345,3421.9,3421.8,5.2688]
[1754185103627,22.0965,3421.9,3421.8,6.0555]
[1754185103841,24.3076,3421.9,3421.8,5.933]
[1754185105133,24.3076,3421.9,3421.8,3.2078]
[1754185105730,1.7003,3421.5,3421.4,2.6007]
[1754185105941,24.25,3421.5,3421.4,2.6007]
[1754185106346,24.25,3421.5,3421.4,4.5454]
[1754185106649,23.3189,3421.5,3421.4,4.5454]
[1754185107542,24.25,3421.5,3421.4,4.5454]
[1754185107742,24.25,3421.5,3421.4,3.5119]
[1754185108743,24.25,3421.5,3421.4,0.4997]
[1754185109535,3.89,3421.3,3420.7,4.5793]
[1754185109742,3.89,3421.0,3420.9,3.5119]
[1754185109936,24.25,3421.0,3420.9,3.5119]
[1754185110144,24.25,3421.0,3420.9,4.5454]
[1754185111541,24.25,3421.0,3420.7,3.2078]
[1754185111542,3.2078,3421.5,3421.4,3.5748]
[1754185111841,23.5678,3421.5,3421.4,4.5631]
[1754185112637,23.5678,3421.5,3420.7,9.25794317]
[1754185112638,4.5423,3422.2,3422.1,1.8152]
[1754185112847,24.9023,3422.2,3422.1,2.8035]
[1754185113033,24.9023,3422.2,3422.1,3.5354]
[1754185113238,23.9169,3422.2,3422.1,4.5631]
[1754185113433,22.1525,3422.2,3422.1,4.5631]
[1754185113634,1.3057,3422.2,3422.1,4.5631]
[1754185113846,43.8604,3422.5,3422.4,4.5631]
[1754185114049,64.2204,3422.5,3422.4,4.5631]
[1754185115942,65.2058,3422.5,3422.4,4.5631]
[1754185116344,65.2058,3422.5,3422.4,3.5354]
[1754185117945,4.5423,3422.2,3422.1,3.5748]
[1754185118253,24.9003,3422.2,3422.1,3.5748]
[1754185118554,24.9003,3422.2,3422.1,4.5631]
[1754185118740,23.9149,3422.2,3422.1,4.5631]
[1754185118947,21.6637,3422.2,3422.1,4.5631]
[1754185119248,21.0074,3422.2,3422.1,4.5631]
[1754185121443,20.358,3422.2,3422.1,4.5631]
[1754185121851,43.8604,3422.5,3422.4,1.8152]
[1754185122050,64.2164,3422.5,3422.4,4.5631]
[1754185122354,43.8604,3422.5,3422.4,4.5631]
[1754185122657,62.451,3422.5,3422.4,4.5631]
[1754185123247,64.2154,3422.5,3422.4,4.5631]
[1754185123546,1.7925,3422.3,3422.2,2.1164]
[1754185123753,24.8973,3422.3,3422.2,3.5354]
[1754185124548,1.2735,3422.1,3422.0,1.4724]
[1754185124753,24.8973,3422.1,3422.0,4.5631]
[1754185125156,42.096,3422.5,3422.3,0.58452]
[1754185125348,20.354,3422.4,3421.9,3.2078]
[1754185125547,2.5792,3422.1,3422.0,5.14768]
[1754185125854,23.9109,3422.1,3422.0,5.14768]
[1754185126653,24.8963,3422.1,3422.0,4.5631]
[1754185126848,24.8963,3422.1,3421.9,3.2078]
[1754185127055,1.1362,3421.8,3421.7,0.9883]
[1754185127248,1.1362,3421.8,3421.7,1.6323]
[1754185127249,24.8953,3421.8,3421.7,1.6323]
[1754185127557,24.8953,3421.8,3421.7,6.64229324]
[1754185127955,24.8953,3421.8,3421.7,4.5631]
[1754185129059,24.8953,3421.8,3421.7,2.1164]
[1754185129257,24.8953,3421.8,3421.7,4.5631]
[1754185130256,4.5423,3421.6,3421.5,3.2078]
[1754185130554,24.8943,3421.6,3421.5,3.2078]
[1754185130766,1.7925,3421.4,3421.2,2.07919324]
[1754185130962,23.9089,3421.3,3421.2,4.5631]
[1754185131262,20.352,3421.3,3421.2,4.5631]
[1754185133156,20.352,3421.3,3421.2,6.64229324]
[1754185133356,20.352,3421.3,3421.2,4.5631]
[1754185133966,2.7702,3421.6,3421.5,1.8152]
[1754185134263,23.9089,3421.6,3421.5,4.5631]
[1754185134650,1.6417,3421.2,3421.1,2.07919324]
[1754185134857,2.7779,3421.1,3421.0,5.28699324]
[1754185135060,4.5423,3421.1,3421.0,3.2078]
[1754185135252,4.5423,3421.1,3420.6,2.60131852]
[1754185135253,0.58475,3421.0,3420.7,2.07919324]
[1754185135464,4.5423,3420.8,3420.6,3.2078]
[1754185135768,24.8943,3420.7,3420.6,3.2078]
[1754185136866,1.7925,3420.3,3420.2,7.40339324]
[1754185137167,24.8933,3420.3,3420.2,5.3242]
[1754185137473,24.8933,3420.3,3420.2,7.7709]
[1754185137673,20.351,3420.3,3420.2,7.7709]
[1754185137975,24.8933,3420.3,3420.2,3.2078]
[1754185138183,0.5851,3419.0,3418.9,2.93271593]
[1754185138367,0.58523,3418.2,3418.1,0.9883]
[1754185138672,26.7574349,3418.2,3417.8,2.016]
[1754185138873,26.7574349,3418.2,3417.6,0.9883]
[1754185139076,0.58531,3417.8,3417.0,1.7596]
[1754185139270,0.58531,3417.8,3417.2,2.016]
[1754185139271,3.2078,3417.6,3417.2,2.016]
[1754185139572,3.2078,3417.6,3417.2,1.0277]
[1754185139774,3.2078,3417.6,3417.4,0.9883]
[1754185140167,3.2078,3417.6,3417.5,2.016]
[1754185141068,3.2078,3417.6,3417.1,1.7596]
[1754185141269,3.2078,3417.6,3417.4,0.9883]
[1754185141469,0.4394,3417.5,3417.4,1.092]
[1754185142171,0.4394,3417.5,3417.4,1.9888]
[1754185142373,0.4394,3417.5,3417.4,0.8968]
[1754185142875,0.4394,3417.5,3417.4,1.9888]
[1754185143089,3.2078,3417.6,3417.5,2.8578]
[1754185143269,23.8268,3417.6,3417.5,5.51366689]
[1754185143474,20.619,3417.6,3417.5,2.8578]
[1754185143881,20.619,3417.6,3417.5,5.51366689]
[1754185144383,3.2078,3418.2,3418.1,0.8968]
[1754185144673,0.1883,3418.8,3418.4,0.5852]
[1754185144880,3.2078,3418.5,3418.4,3.443]
[1754185145275,23.8418,3418.5,3418.4,5.51366689]
[1754185147273,2.5094049,3419.2,3418.4,5.51366689]
[1754185147274,0.1883,3418.7,3418.6,2.8578]
[1754185147483,24.0181,3418.7,3418.6,2.8578]
[1754185147676,24.0181,3418.7,3418.6,5.51366689]
[1754185148580,24.0181,3418.7,3418.6,7.50636689]
[1754185149981,23.8298,3418.7,3418.6,7.50636689]
[1754185150382,24.0181,3418.7,3418.6,7.50636689]
[1754185150583,24.4199,3418.7,3418.6,7.50636689]
[1754185150978,0.1883,3418.6,3418.1,0.58525]
[1754185151183,0.5901,3418.2,3418.1,2.994]
[1754185151383,21.7425,3418.2,3418.1,2.125]
[1754185151584,21.7425,3418.2,3418.1,4.8505]
[1754185151784,21.3031,3418.2,3418.1,4.8505]
[1754185152085,3.3961,3418.8,3418.7,4.8505]
[1754185152277,24.9603,3418.8,3418.7,4.8505]
[1754185152684,24.7092,3418.8,3418.7,4.8505]
[1754185153285,24.9603,3418.8,3418.7,4.8505]
[1754185154289,1.1425,3418.4,3418.3,3.9815]
[1754185154587,21.7425,3418.4,3418.3,4.8505]
[1754185154788,21.7425,3418.4,3418.3,7.50636689]
[1754185155184,21.4914,3418.4,3418.3,7.50636689]
[1754185156291,20.588,3418.4,3418.3,7.50636689]
[1754185156590,42.098,3419.0,3418.9,4.8505]
[1754185156792,62.685,3419.0,3418.9,4.8505]
[1754185156982,62.8733,3419.0,3418.9,4.8505]
[1754185157181,63.1244,3419.0,3418.9,4.8505]
[1754185158290,64.0133681,3419.0,3418.9,4.8505]
[1754185159199,1.57459769,3419.7,3419.4,0.7645]
[1754185159498,20.603,3420.2,3420.0,0.58491]
[1754185159680,20.603,3420.2,3420.1,3.2078]
[1754185160090,20.603,3420.2,3420.1,6.0656]
[1754185160295,20.614,3420.4,3420.1,3.2078]
[1754185160494,1.1289,3420.6,3420.2,3.44267]
[1754185160690,20.609,3420.5,3420.4,2.8578]
[1754185160893,20.607,3420.5,3420.4,2.8578]
[1754185161096,1.57459769,3420.8,3420.4,0.58484]
[1754185161290,20.605,3420.7,3420.6,2.8578]
[1754185161687,2.9147,3420.6,3420.1,3.2078]
[1754185161884,20.605,3420.7,3419.8,2.8578]
[1754185162096,0.918,3420.5,3419.8,2.8578]
[1754185162286,22.6037,3420.4,3419.8,2.8578]
[1754185164500,0.58491,3420.1,3419.8,1.9888]
[1754185164696,2.9147,3419.9,3419.7,0.8968]
[1754185164888,2.0469,3419.9,3419.7,0.869]
[1754185165084,0.8678,3419.8,3419.7,0.869]
[1754185165289,1.1289,3419.9,3419.7,1.45397]
[1754185165496,1.1289,3419.9,3419.8,2.8578]
[1754185165795,1.9967,3419.9,3419.8,2.8578]
[1754185168501,3.9303,3419.9,3419.8,4.8505]
[1754185168701,20.589,3420.0,3419.8,5.43544]
[1754185168907,20.589,3420.0,3419.8,2.57764]
[1754185169100,2.8014,3420.3,3420.2,4.8505]
[1754185169297,20.56,3420.3,3420.2,4.8505]
[1754185169701,21.1944,3420.3,3420.2,4.8505]
[1754185169897,20.56,3420.3,3420.2,4.8505]
[1754185171401,21.43158587,3420.3,3420.2,4.8505]
[1754185172196,20.56,3420.3,3420.2,4.8505]
[1754185174007,20.546,3420.5,3420.4,4.8313]
[1754185174300,21.41818606,3420.5,3420.4,4.8313]
[1754185176400,20.546,3420.5,3420.4,4.8313]
[1754185176600,20.546,3420.5,3420.4,3.9975]
[1754185176601,24.4987,3420.5,3420.4,3.9975]
[1754185176907,25.36722313,3420.5,3420.4,4.8313]
[1754185179407,24.4987,3420.5,3420.4,4.8313]
[1754185180002,2.9647,3420.4,3420.1,1.1693]
[1754185180208,4.9348,3420.2,3420.1,1.5011]
[1754185181311,3.9527,3420.2,3420.1,4.8313]
[1754185181709,2.8048,3420.2,3420.1,4.8313]
[1754185182510,0.8347,3419.8,3419.6,4.104]
[1754185182712,24.4617,3419.7,3419.6,5.9736]
[1754185183304,24.4617,3419.7,3419.6,8.0391]
[1754185183813,25.4438,3419.7,3419.6,7.2053]
[1754185184315,25.4438,3419.7,3419.6,4.7089]
[1754185184316,25.4358,3419.7,3419.6,4.7089]
[1754185184608,25.4358,3419.7,3419.6,7.2053]
[1754185184813,25.4358,3419.7,3419.6,8.0391]
[1754185185216,25.4358,3419.7,3419.6,4.8313]
[1754185185808,25.4358,3419.7,3419.6,3.9975]
[1754185187411,25.4358,3419.7,3419.6,4.8313]
[1754185189117,23.3058,3419.7,3419.6,4.8313]
[1754185189317,24.17858476,3419.7,3419.6,4.8313]
[1754185190323,23.3058,3419.7,3419.6,4.8313]
[1754185191519,24.4537,3419.7,3419.6,4.8313]
[1754185191818,1.9701,3419.5,3419.4,3.9351]
[1754185192122,25.3898,3419.5,3419.4,3.9351]
[1754185192323,25.3898,3419.5,3419.4,4.8313]
[1754185193526,24.4077,3419.5,3419.4,4.8313]
[1754185193730,4.9348,3419.4,3419.3,1.932]
[1754185194030,20.455,3419.5,3419.0,8.0391]
[1754185194221,20.455,3419.5,3419.3,1.932]
[1754185194222,1.4331,3419.4,3419.3,1.932]
[1754185194416,20.455,3419.5,3419.3,4.8313]
[1754185194622,3.9527,3419.9,3419.8,1.932]
[1754185194818,26.48710789,3419.9,3419.8,3.9975]
[1754185195125,1.1735,3419.2,3419.1,3.1013]
[1754185195326,22.4782,3419.2,3419.1,3.1013]
[1754185195724,22.4782,3419.2,3419.1,4.8313]
[1754185195929,22.4401,3419.2,3419.1,4.8313]
[1754185196525,21.6435,3419.2,3419.1,4.8313]
[1754185197333,21.0684,3419.2,3419.1,4.8313]
[1754185197633,20.47,3419.2,3419.1,4.8313]
[1754185197932,21.0684,3419.2,3419.1,4.8313]
[1754185198130,21.6435,3419.2,3419.1,4.8313]
[1754185198323,20.47,3419.2,3419.1,4.8313]
[1754185200120,0.8347,3419.7,3419.2,0.58506]
[1754185200329,2.8048,3419.5,3419.4,4.8313]
[1754185200731,3.9527,3419.5,3419.4,4.8313]
[1754185202731,3.9125,3419.5,3419.4,3.2397]
[1754185202929,4.2147,3419.4,3419.2,2.0481]
[1754185203125,25.2869,3419.3,3419.2,0.9513]
[1754185203325,1.9533,3419.1,3419.0,6.681]
[1754185203630,4.8239,3418.7,3418.6,3.2078]
[1754185203819,25.2849,3418.7,3418.6,3.2078]
[1754185204020,25.2849,3418.7,3418.6,0.9513]
[1754185204324,25.2849,3418.7,3418.6,4.0173]
[1754185204524,20.461,3418.7,3418.6,8.0493]
[1754185206534,3.9125,3419.4,3419.3,1.9692]
[1754185206735,25.3139,3419.4,3419.3,4.8415]
[1754185207729,25.3139,3419.4,3419.3,4.0173]
[1754185207923,24.4025,3419.4,3419.3,4.8415]
[1754185210238,45.13166736,3420.0,3419.4,4.194]
[1754185210438,1.18,3419.6,3419.5,3.2397]
[1754185210636,24.1563705,3419.6,3419.5,4.0173]
[1754185210837,26.1823705,3419.6,3419.5,4.0173]
[1754185211543,25.2709705,3419.6,3419.5,4.8415]
[1754185212239,22.5384705,3419.6,3419.5,4.8415]
[1754185212443,21.3584705,3419.6,3419.5,4.8415]
[1754185213051,20.486,3419.6,3419.5,4.8415]
[1754185213247,5.1611,3419.9,3419.8,1.9692]
[1754185213543,27.35891909,3419.9,3419.8,4.8415]
[1754185213938,28.47351909,3419.9,3419.8,4.8415]
[1754185214238,20.48,3419.9,3419.8,4.8415]
[1754185215037,21.0892,3419.9,3419.8,4.8415]
[1754185215233,22.5046,3419.9,3419.8,4.8415]
[1754185215844,24.3925,3419.9,3419.8,4.8415]
[1754185216152,25.3039,3419.9,3419.8,4.8415]
[1754185216334,25.3039,3419.9,3419.5,0.585]
[1754185216335,1.9533,3419.7,3419.6,2.6956]
[1754185216646,25.2819,3419.7,3419.6,4.8415]
[1754185217045,24.3705,3419.7,3419.6,4.8415]
[1754185220349,23.2559,3419.7,3419.6,4.8415]
[1754185220543,25.2819,3419.7,3419.6,4.8415]
[1754185222150,23.2559,3419.7,3419.6,4.8415]
[1754185222653,47.49486736,3420.7,3420.2,1.7443]
[1754185222951,26.28662638,3420.6,3420.5,0.9513]
[1754185223139,4.8239,3420.3,3420.2,3.8902]
[1754185223340,26.11587956,3420.3,3420.2,3.8902]
[1754185223546,25.20447956,3420.3,3420.2,3.8902]
[1754185223742,21.29197956,3420.3,3420.2,4.8415]
[1754185224249,20.419,3420.3,3420.2,4.8415]
[1754185225142,1.6092,3421.0,3420.9,4.8415]
[1754185225346,1.87232219,3421.0,3420.9,4.8415]
[1754185226147,1.0,3421.0,3420.9,4.8415]
[1754185227445,0.8446,3421.8,3421.7,1.9692]
[1754185227754,23.48314104,3421.8,3421.7,4.8415]
[1754185228250,24.49599022,3421.8,3421.7,4.8415]
[1754185229348,24.3276,3421.8,3421.7,4.8415]
[1754185230352,25.239,3421.8,3421.7,4.8415]
[1754185231751,25.82361,3421.8,3421.7,4.8415]
[1754185231947,4.8394,3421.4,3421.3,5.8432]
[1754185232256,1.9913,3421.1,3421.0,2.6354]
[1754185232454,4.8394,3421.1,3421.0,2.6354]
[1754185232753,2.3296,3421.3,3421.2,4.8347]
[1754185232950,3.1105,3421.3,3421.2,4.8347]
[1754185233454,3.9163,3421.3,3421.2,4.8347]
[1754185235356,4.04107,3420.9,3420.8,4.7523]
[1754185235552,5.42417,3420.9,3420.8,3.4135]
[1754185236050,4.8394,3420.9,3420.8,3.9804]
[1754185237048,0.6331,3420.6,3420.5,3.9804]
[1754185237261,3.9163,3420.6,3420.5,4.8347]
[1754185237553,4.8394,3420.6,3420.5,3.9804]
[1754185237859,0.58484,3420.5,3420.1,0.8543]
[1754185238053,1.925,3420.4,3420.3,1.7284]
[1754185238247,20.395,3420.5,3420.3,4.8347]
[1754185238448,20.395,3420.5,3420.4,4.8347]
[1754185239060,20.9723,3420.5,3420.4,4.8347]
[1754185240160,21.7781,3420.5,3420.4,4.8347]
[1754185240360,2.0162,3420.5,3420.4,4.8347]
[1754185241165,0.9231,3421.0,3420.3,3.2078]
[1754185241166,22.4112,3421.1,3421.0,4.8347]
[1754185241863,21.6054,3421.1,3421.0,4.8347]
[1754185242065,1.3831,3421.4,3421.3,1.9825]
[1754185242268,21.7791,3421.4,3421.3,4.8347]
[1754185245062,20.396,3421.4,3421.3,4.8347]
[1754185246556,20.9733,3421.4,3421.3,4.8347]
[1754185248068,20.396,3421.4,3421.3,4.8347]
[1754185248275,3.2078,3422.2,3421.8,1.9825]
[1754185248276,0.5773,3421.9,3421.8,1.9825]
[1754185248565,21.7761,3421.9,3421.8,5.41932]
[1754185248762,20.9703,3421.9,3421.8,5.41932]
[1754185248967,7.1051,3422.2,3422.1,0.58456]
[1754185249179,27.4981,3422.2,3422.1,5.41926]
[1754185251061,24.2903,3422.2,3422.1,4.56496]
[1754185251260,2.7971,3422.2,3422.1,5.41926]
[1754185252966,3.8973,3422.2,3422.1,3.4135]
[1754185253270,3.8973,3422.2,3422.1,0.907]
[1754185253271,4.8204,3422.2,3422.1,0.907]
[1754185253865,4.8204,3422.2,3422.1,1.5445]
[1754185254061,4.8204,3422.2,3422.1,3.4135]
[1754185254559,0.58483,3420.6,3420.3,3.62705433]
[1754185254759,1.8425,3420.1,3420.0,0.907]
[1754185254962,3.1891,3420.0,3419.9,4.1148]
[1754185255269,2.686,3419.9,3419.8,1.9825]
[1754185255474,3.0396,3419.9,3419.8,4.8347]
[1754185258378,0.7809,3419.9,3419.8,4.8347]
[1754185258570,20.524,3420.1,3419.5,3.2078]
[1754185258571,22.9979,3420.1,3420.0,4.8347]
[1754185258767,23.5636,3420.1,3420.0,3.9804]
[1754185259070,23.5636,3420.1,3420.0,2.8895]
[1754185259266,23.5636,3420.1,3420.0,0.907]
[1754185259469,1.5858,3419.9,3419.8,0.907]
[1754185259777,3.0396,3419.9,3419.8,1.5445]
[1754185260166,3.0396,3419.9,3419.8,3.2023]
[1754185260769,3.0396,3419.9,3419.8,2.1114]
[1754185260971,3.0396,3419.9,3419.8,1.5445]
[1754185262069,3.0396,3419.9,3419.8,2.8895]
[1754185262278,3.0396,3419.9,3419.8,4.815]
[1754185263374,20.524,3420.1,3419.8,2.56744]
[1754185263570,3.2078,3420.2,3420.0,1.9214]
[1754185263883,5.8344,3420.2,3420.1,4.7924]
[1754185264192,6.2082,3420.2,3420.1,4.7924]
[1754185264574,23.6908,3420.2,3420.1,4.7924]
[1754185264764,24.403,3420.2,3420.1,4.7924]
[1754185264973,25.0174,3420.2,3420.1,4.7924]
[1754185265173,26.6912,3420.2,3420.1,4.7924]
[1754185265670,3.2078,3420.2,3420.1,4.7924]
[1754185265884,21.569,3420.5,3420.4,4.7924]
[1754185266178,21.8096,3420.5,3420.4,4.7924]
[1754185266380,23.4834,3420.5,3420.4,4.7924]
[1754185266772,20.483,3420.5,3420.4,4.7924]
[1754185270077,0.6144,3421.0,3420.9,0.7392]
[1754185270276,23.4624,3421.0,3420.9,3.401]
[1754185270475,23.6128,3421.0,3420.6,1.9255]
[1754185270674,1.4994,3420.8,3420.7,0.9455]
[1754185270876,1.4994,3420.3,3420.2,4.29489]
[1754185271083,1.7416,3420.2,3420.1,1.5794]
[1754185271282,3.0004,3420.2,3420.1,1.5794]
[1754185271470,3.0004,3420.2,3420.1,2.1277]
[1754185271668,3.0004,3420.2,3420.1,3.9493]
[1754185271868,3.0004,3420.2,3420.1,4.7924]
[1754185273980,3.0004,3420.2,3420.1,2.8669]
[1754185274679,3.0004,3420.2,3420.1,3.9493]
[1754185274879,3.0004,3420.2,3420.1,4.7924]
[1754185278278,3.0004,3420.2,3420.1,2.6618]
[1754185278483,3.0004,3420.2,3420.1,3.9493]
[1754185278672,3.0004,3420.2,3420.1,4.7924]
[1754185279074,3.0004,3420.2,3420.1,4.2441]
[1754185279388,3.0004,3419.6,3419.5,2.1277]
[1754185279583,23.4184,3419.6,3419.5,4.7924]
[1754185280287,22.2912,3419.6,3419.5,4.7924]
[1754185280682,20.418,3419.6,3419.5,4.7924]
[1754185280986,23.4184,3419.6,3419.5,4.7924]
[1754185281381,20.418,3419.6,3419.5,4.7924]
[1754185281689,6.79309,3420.2,3420.1,4.7924]
[1754185281986,27.21809,3420.2,3420.1,2.8669]
[1754185283186,28.10164999,3420.2,3420.1,2.8669]
[1754185283591,27.51675999,3420.2,3420.1,3.9493]
[1754185283790,27.51675999,3420.2,3420.1,4.7924]
[1754185286384,27.51675999,3420.2,3420.1,3.9493]
[1754185287078,27.51675999,3420.2,3420.1,4.7924]
[1754185287591,27.51675999,3420.2,3420.1,0.9455]
[1754185287784,27.66715999,3420.2,3420.1,0.9455]
[1754185288889,27.51675999,3420.2,3420.1,1.5794]
[1754185289988,24.49735999,3420.2,3420.1,4.7924]
[1754185291393,25.58335999,3420.2,3420.1,4.7924]
[1754185291690,26.66995999,3420.2,3420.1,4.7924]
[1754185291884,25.20955999,3420.2,3420.1,4.7924]
[1754185293492,25.55295999,3420.2,3420.1,4.7924]
[1754185294989,27.40335999,3420.2,3420.1,2.1277]
[1754185295498,27.40335999,3420.2,3420.1,4.8613]
[1754185295687,26.5198,3420.2,3420.1,4.8613]
[1754185298800,23.6138,3420.2,3420.1,4.8613]
[1754185299904,25.7802,3420.2,3420.1,4.8613]
[1754185300198,26.5436,3420.2,3420.1,4.8613]
[1754185303395,26.5436,3420.2,3420.1,2.1277]
[1754185304003,27.42962566,3420.2,3420.1,0.9455]
[1754185304210,27.57972566,3420.2,3420.1,0.9455]
[1754185305497,27.42962566,3420.2,3420.1,4.8265]
[1754185305693,6.1376,3420.2,3420.1,4.8265]
[1754185306002,26.5406,3420.2,3420.1,4.8265]
[1754185308003,24.3472,3420.2,3420.1,4.8265]
[1754185308196,23.6098,3420.2,3420.1,4.8265]
[1754185309500,26.5396,3420.2,3420.1,4.8265]
[1754185311006,0.7364,3419.5,3419.4,3.6475]
[1754185311208,1.0798,3419.5,3419.4,4.7949]
[1754185312101,1.0798,3419.5,3419.4,5.37992]
[1754185312606,0.7364,3419.5,3419.4,5.37992]
[1754185313009,20.401,3419.6,3419.4,5.37992]
[1754185313305,22.9874,3419.6,3419.5,4.7949]
[1754185313807,23.3308,3419.6,3419.5,4.7949]
[1754185314003,0.9766,3419.1,3419.0,3.9826]
[1754185314306,23.3308,3419.1,3419.0,4.7949]
[1754185315906,22.9874,3419.1,3419.0,3.6438]
[1754185316208,23.3308,3419.1,3419.0,4.7949]
[1754185318698,23.3308,3419.1,3419.0,2.0613]
[1754185318904,23.3308,3419.1,3419.0,1.1474]
[1754185319114,23.3308,3419.1,3419.0,4.0247]
[1754185319613,23.3308,3419.1,3419.0,4.7949]
[1754185320300,23.3308,3419.1,3419.0,3.9826]
[1754185320603,23.3308,3419.1,3419.0,0.9139]
[1754185320909,2.8567,3418.7,3418.6,4.7949]
[1754185321111,23.2577,3418.7,3418.6,4.7949]
[1754185321604,0.58516,3418.6,3418.1,4.1135]
[1754185321809,2.7979,3418.3,3418.2,4.6661]
[1754185322112,20.401,3418.3,3418.2,4.6661]
[1754185324909,3.2078,3418.9,3418.2,4.6661]
[1754185325206,0.936,3419.1,3419.0,1.8646]
[1754185325416,22.8864,3419.1,3419.0,3.8598]
[1754185325910,23.1999,3419.1,3419.0,3.8598]
[1754185326113,23.1999,3419.1,3419.0,4.6661]
[1754185326813,23.2009,3419.1,3419.0,4.6661]
[1754185328813,21.4594,3419.1,3419.0,4.6661]
[1754185329205,1.7511,3419.2,3419.1,5.25118]
[1754185329405,23.1999,3419.2,3419.1,4.6661]
[1754185332316,21.4584,3419.2,3419.1,4.6661]
[1754185332512,23.1999,3419.2,3419.1,4.6661]
[1754185333316,1.3603,3419.1,3418.0,3.2078]
[1754185333512,2.9487,3418.3,3418.2,0.58523]
[1754185333820,0.6947,3418.3,3418.2,4.16183]
[1754185334006,20.401,3418.5,3418.2,5.25133]
[1754185334208,22.456,3418.5,3418.4,5.2513]
[1754185334727,3.2078,3418.8,3418.7,5.25124]
[1754185335015,20.4,3418.8,3418.7,5.25124]
[1754185336513,3.2078,3419.2,3418.7,2.44974]
[1754185336713,23.1979,3419.1,3419.0,4.6661]
[1754185339527,2.7979,3419.1,3419.0,4.6661]
[1754185339912,23.1969,3419.1,3419.0,4.6661]
[1754185340113,22.1501,3419.1,3419.0,4.6661]
[1754185340318,3.2078,3419.2,3419.1,4.0465]
[1754185340516,23.6068,3419.2,3419.1,4.6661]
[1754185340818,3.2078,3419.2,3419.1,4.6661]
[1754185341322,23.6058,3419.2,3419.1,4.6661]
[1754185342112,3.2078,3419.2,3419.1,4.6661]
[1754185342324,20.397,3419.2,3419.1,2.44967]
[1754185343022,20.397,3419.2,3419.1,5.25117]
[1754185343415,43.4803,3419.6,3419.5,5.25111]
[1754185343617,63.8773,3419.6,3419.5,4.6661]
[1754185345821,62.517,3419.6,3419.5,3.8598]
[1754185346020,63.8773,3419.6,3419.5,4.6661]
[1754185347415,43.4803,3419.6,3419.5,4.6661]
[1754185347619,63.8733,3419.6,3419.5,4.6661]
[1754185349319,63.8733,3419.6,3419.3,0.58504]
[1754185349526,2.7979,3419.4,3419.3,5.25114]
[1754185349719,23.1909,3419.4,3419.3,5.25114]
[1754185349923,20.393,3419.4,3419.3,5.25114]
[1754185350124,42.12,3419.6,3419.3,2.44964]
[1754185350418,42.12,3419.6,3419.5,5.25111]
[1754185350621,62.8245,3419.6,3419.5,5.25111]
[1754185350817,63.8713,3419.6,3419.5,5.25111]
[1754185352624,63.8713,3419.6,3419.5,1.49071]
[1754185352828,21.7513,3419.6,3419.5,1.49071]
[1754185353015,23.1705,3419.6,3419.5,5.23481]
[1754185353417,3.2078,3419.7,3419.5,5.23481]
[1754185353623,3.2078,3419.7,3419.6,4.6552]
[1754185354132,23.5968,3419.7,3419.6,4.6552]
[1754185354738,25.8531,3419.7,3419.6,4.6552]
[1754185354921,2.7109,3419.6,3419.5,2.45981]
[1754185355119,2.7109,3419.6,3419.5,3.53311]
[1754185355422,2.7109,3419.6,3419.5,4.44421]
[1754185355621,23.0999,3419.6,3419.5,5.24021]
[1754185356727,3.2078,3419.7,3419.6,4.6552]
[1754185357030,23.5938,3419.7,3419.6,4.6552]